bitfinex-derivatives/quotes_ETHF0:USTF0_20240904
["timestamp","ask_amount","ask_price","bid_price","bid_amount"]
[1725408000501,1.02629302,2425.2,2425.0,3.2078]
[1725408000700,2.352,2425.8,2425.0,3.2078]
[1725408003903,2.352,2425.8,2425.4,3.2078]
[1725408004608,0.00404312,2426.1,2425.4,3.2078]
[1725408004911,0.00404312,2426.1,2425.7,3.2078]
[1725408005110,0.00404312,2426.1,2426.0,3.2078]
[1725408005309,0.00404312,2426.1,2426.0,9.2078]
[1725408005611,5.5632,2427.3,2426.0,9.6206]
[1725408005804,5.5632,2427.3,2426.6,3.2078]
[1725408006109,5.5632,2427.3,2426.4,3.2078]
[1725408006609,5.5632,2427.3,2426.6,0.00618531]
[1725408006610,0.00618531,2427.1,2426.6,0.00618531]
[1725408007112,0.00618531,2427.1,2426.9,3.2078]
[1725408007506,0.00618531,2427.1,2426.6,3.21398531]
[1725408007810,0.00618531,2427.1,2426.9,3.2078]
[1725408008212,3.2078,2428.6,2427.0,4.12]
[1725408008512,3.2078,2428.6,2426.6,0.00618531]
[1725408008513,1.02629302,2427.7,2427.2,3.2078]
[1725408008709,3.2078,2427.7,2427.2,3.2078]
[1725408009006,1.02629302,2427.3,2426.6,0.00618531]
[1725408009209,1.02629302,2426.7,2426.6,0.00618531]
[1725408009597,3.2078,2428.1,2426.6,10.53978531]
[1725408009803,1.02629302,2427.3,2427.0,3.2078]
[1725408010408,3.2078,2428.1,2427.0,3.2078]
[1725408010610,3.2078,2428.1,2426.6,0.00618531]
[1725408010611,1.02629302,2427.1,2426.6,0.00618531]
[1725408010809,1.02629302,2426.7,2426.6,0.00618531]
[1725408011009,1.02629302,2426.8,2426.6,0.00618531]
[1725408011202,1.02629302,2427.0,2426.6,6.00618531]
[1725408011398,3.2078,2427.7,2426.8,3.2078]
[1725408011619,1.02629302,2427.4,2427.2,3.2078]
[1725408012113,1.02629302,2427.3,2427.2,3.2078]
[1725408012312,1.02629302,2427.4,2427.2,3.2078]
[1725408012705,1.57167802,2428.2,2427.3,4.12]
[1725408013011,1.57167802,2428.2,2426.6,0.00618531]
[1725408013012,1.02629302,2427.8,2427.4,3.2078]
[1725408013308,1.02629302,2427.8,2427.7,3.2078]
[1725408013510,1.02629302,2427.8,2427.3,3.2078]
[1725408013908,1.02629302,2427.6,2427.3,3.2078]
[1725408014315,1.02629302,2427.4,2427.3,3.2078]
[1725408015011,1.57167802,2428.2,2427.3,7.3278]
[1725408015216,1.02629302,2427.5,2427.3,3.2078]
[1725408015512,3.2078,2428.4,2427.4,4.12]
[1725408015811,3.2078,2428.7,2427.3,3.2078]
[1725408016019,1.02629302,2427.7,2427.3,3.2078]
[1725408016314,4.88206336,2428.9,2427.3,3.2078]
[1725408016315,1.02629302,2427.4,2427.3,0.00618531]
[1725408016815,3.2078,2427.8,2427.3,7.33398531]
[1725408017004,1.02629302,2427.5,2427.3,0.00618531]
[1725408017201,1.02629302,2427.4,2427.3,0.00618531]
[1725408018013,1.02629302,2427.4,2427.3,3.21398531]
[1725408018321,6.0,2427.4,2426.2,3.2078]
[1725408018510,3.2078,2426.8,2425.7,3.2078]
[1725408018921,3.2078,2426.8,2425.4,7.1678]
[1725408019217,3.2078,2426.5,2425.1,3.2078]
[1725408019420,0.00618531,2426.0,2425.6,0.00618531]
[1725408019717,0.00618531,2426.0,2425.9,3.2078]
[1725408019916,0.00618531,2426.0,2425.6,0.00618531]
[1725408020312,4.1224,2425.9,2425.6,0.00618531]
[1725408020817,0.00618531,2426.0,2425.6,0.00618531]
[1725408021118,0.00618531,2426.0,2425.8,3.2078]
[1725408021512,0.00618531,2426.0,2425.9,4.1224]
[1725408021911,0.00618531,2426.0,2425.9,10.1224]
[1725408023519,3.2078,2427.9,2425.9,8.54590246]
[1725408023719,3.2078,2427.9,2427.0,3.2078]
[1725408024714,3.2078,2427.9,2427.2,0.00618531]
[1725408026012,2.2143,2428.3,2427.2,0.00618531]
[1725408026213,2.2143,2428.3,2427.3,3.2078]
[1725408026521,2.2143,2428.3,2427.6,3.2078]
[1725408026713,2.2143,2428.3,2427.2,0.00618531]
[1725408028117,2.2143,2428.3,2427.4,3.2078]
[1725408028620,7.7478,2428.8,2427.6,3.2078]
[1725408029219,3.2078,2428.5,2427.2,3.21398531]
[1725408029615,3.2078,2428.1,2427.2,0.00618531]
[1725408029818,3.2078,2428.1,2427.3,3.2078]
[1725408030015,3.2078,2427.7,2427.2,0.00618531]
[1725408030215,3.2078,2427.4,2426.2,3.2078]
[1725408030417,3.2078,2426.9,2426.3,0.4122]
[1725408030616,3.2078,2426.9,2426.2,3.62002]
[1725408030819,4.1208,2426.8,2425.9,3.2078]
[1725408031017,2.1699,2426.8,2426.1,0.41223]
[1725408031218,0.00618531,2426.7,2426.2,0.00618531]
[1725408031430,0.00618531,2426.7,2426.4,0.41218]
[1725408031629,0.00618531,2426.7,2426.3,0.4122]
[1725408032125,0.00618531,2426.7,2426.6,0.41216]
[1725408032626,4.12698531,2426.7,2426.2,0.00618531]
[1725408032825,4.12698531,2426.7,2426.6,0.41216]
[1725408032826,0.00618531,2426.7,2426.6,0.41216]
[1725408033220,0.00618531,2426.7,2426.6,4.53296]
[1725408033429,0.00618531,2426.7,2426.6,10.53296]
[1725408033622,0.00618531,2426.7,2426.6,11.56336]
[1725408033818,5.31e-06,2426.7,2426.6,11.76817366]
[1725408034330,5.31e-06,2426.7,2426.6,4.53296]
[1725408034525,5.31e-06,2426.7,2426.6,10.53296]
[1725408035025,5.31e-06,2426.7,2426.6,11.56336]
[1725408035533,5.31e-06,2426.7,2426.6,20.04850445]
[1725408036225,5.31e-06,2426.7,2426.6,21.28231419]
[1725408037626,5.31e-06,2426.7,2426.6,20.25191419]
[1725408037822,5.31e-06,2426.7,2426.6,8.89730445]
[1725408038023,5.31e-06,2426.7,2426.6,4.53296]
[1725408038331,5.31e-06,2426.7,2426.3,3.96]
[1725408038332,4.12080531,2426.7,2426.3,0.4122]
[1725408038630,4.12080531,2426.7,2426.2,0.00618531]
[1725408038831,4.12080531,2426.7,2426.0,3.2078]
[1725408038832,6.00000531,2426.7,2426.0,3.2078]
[1725408039132,6.00000531,2426.7,2425.9,1.07018622]
[1725408039133,3.96000531,2426.7,2425.9,1.07018622]
[1725408039825,0.41222,2426.3,2425.9,1.07018622]
[1725408040025,2.2543,2426.2,2426.1,0.00618531]
[1725408040236,9.5837,2426.2,2426.1,0.00293396]
[1725408040432,15.5837,2426.2,2426.1,0.00293396]
[1725408040622,15.5837,2426.2,2425.9,1.07018622]
[1725408040822,4.1216,2426.1,2425.5,1.07005226]
[1725408041027,9.99673,2426.2,2425.5,1.07005226]
[1725408041433,3.2078,2425.9,2425.5,1.07005226]
[1725408041624,3.2078,2425.9,2425.5,1.07623757]
[1725408041821,3.2078,2425.6,2424.8,2.14060676]
[1725408042024,3.2078,2425.6,2424.8,2.55305676]
[1725408042226,2.10114167,2425.7,2424.9,0.41243]
[1725408042424,3.2078,2425.6,2424.9,0.41243]
[1725408042632,3.2078,2425.6,2424.8,0.41246]
[1725408042826,0.00618531,2425.4,2424.9,0.41244]
[1725408043032,0.00618531,2425.4,2425.0,0.00618531]
[1725408044027,4.1232,2425.3,2425.0,0.00618531]
[1725408044435,4.1232,2425.2,2425.0,0.00618531]
[1725408044639,3.21398531,2425.4,2425.0,0.00618531]
[1725408044839,4.1232,2425.3,2423.9,3.6206]
[1725408045144,9.62635531,2425.4,2423.9,3.6206]
[1725408045145,0.4124,2425.2,2424.3,0.41255]
[1725408045334,0.4124,2425.2,2423.9,3.6206]
[1725408045335,3.2078,2424.8,2424.0,0.41259]
[1725408045530,5.3614,2425.2,2423.9,3.2078]
[1725408045840,5.3614,2425.2,2424.6,0.41248]
[1725408046034,5.3614,2425.2,2424.3,0.00618531]
[1725408046240,5.3614,2425.2,2424.5,3.2078]
[1725408046241,3.2078,2425.2,2424.5,3.2078]
[1725408046636,0.00618531,2425.4,2424.5,3.2078]
[1725408046950,0.00618531,2425.4,2425.1,0.41241]
[1725408047151,0.00618531,2425.4,2425.0,0.41242]
[1725408047446,0.00618531,2425.4,2424.5,3.2078]
[1725408047632,0.00618531,2425.4,2424.5,4.23907]
[1725408047832,0.00618531,2425.4,2424.8,3.2078]
[1725408048033,0.00618531,2425.4,2425.3,0.41238]
[1725408048733,0.00618531,2425.4,2425.2,0.41239]
[1725408048934,0.00618531,2425.4,2424.8,3.2078]
[1725408049131,0.00618531,2425.4,2424.9,4.1232]
[1725408049328,0.00618531,2425.4,2424.9,11.291]
[1725408049539,0.00618531,2425.4,2425.3,0.41238]
[1725408049939,0.00618531,2425.4,2425.3,4.1232]
[1725408050136,4.12938531,2425.4,2424.9,3.2078]
[1725408050446,0.00618531,2425.4,2424.9,3.2078]
[1725408050748,0.00618531,2425.4,2424.9,3.62023]
[1725408050940,0.00618531,2425.4,2425.0,0.41243]
[1725408051547,0.00618531,2425.4,2424.9,3.2078]
[1725408051844,0.00618531,2425.4,2425.3,0.41238]
[1725408053351,0.00618531,2425.4,2425.3,4.53558]
[1725408054739,0.00618531,2425.4,2425.3,10.53558]
[1725408054946,3.2078,2426.1,2425.9,0.41227]
[1725408055155,3.2078,2426.1,2425.7,0.4123]
[1725408055549,3.2078,2426.1,2425.8,0.41228]
[1725408055956,1.57210568,2426.2,2425.6,3.2078]
[1725408055957,1.57829099,2426.2,2425.7,0.41848531]
[1725408056160,1.57829099,2426.2,2425.7,0.00618531]
[1725408056362,1.57829099,2426.2,2425.8,0.41229]
[1725408056857,1.57829099,2426.2,2426.1,0.41224]
[1725408057372,1.57829099,2426.2,2426.1,4.53384]
[1725408057565,1.57829099,2426.2,2426.1,11.56445]
[1725408057762,1.57829099,2426.2,2426.1,5.56445]
[1725408057971,1.57829099,2426.2,2426.1,11.56445]
[1725408058263,2.10114167,2426.3,2426.2,0.41222]
[1725408058558,2.10114167,2426.3,2426.2,3.62002]
[1725408058760,2.10114167,2426.3,2426.2,7.74162]
[1725408059154,2.10114167,2426.3,2426.2,3.62002]
[1725408059563,1.05966167,2426.3,2426.2,7.74162]
[1725408059756,1.05966167,2426.3,2426.2,8.77219]
[1725408059962,2.63413096,2426.5,2426.4,0.41219]
[1725408060357,1.77586096,2426.5,2426.4,11.56427]
[1725408060566,3.66824659,2426.9,2426.6,0.41216]
[1725408060752,3.66824659,2426.9,2426.6,3.61996]
[1725408061259,3.66824659,2426.9,2426.6,7.74076]
[1725408061456,3.66824659,2426.9,2426.6,13.74076]
[1725408061657,3.6744319,2426.9,2426.6,13.74076]
[1725408061858,3.6744319,2426.9,2426.6,14.77116]
[1725408062461,3.6744319,2426.9,2426.8,1.44243]
[1725408062863,2.7788719,2426.9,2426.8,12.59354]
[1725408063063,0.00618531,2426.9,2426.8,5.56323]
[1725408063262,0.00618531,2426.9,2426.8,11.56323]
[1725408063564,5.31e-06,2426.9,2426.8,11.56323]
[1725408064157,5.31e-06,2426.9,2426.8,12.59354]
[1725408064363,5.31e-06,2426.9,2426.8,21.24771626]
[1725408064760,3.2078,2428.8,2427.9,0.41193]
[1725408065066,3.61959,2428.8,2427.9,0.41193]
[1725408065263,3.2078,2428.8,2428.1,0.41189]
[1725408065458,3.2078,2428.8,2427.7,3.2078]
[1725408065459,3.2078,2428.8,2428.2,0.41188]
[1725408065764,3.2078,2428.8,2428.3,0.00618531]
[1725408066355,3.2078,2428.8,2428.4,0.41184]
[1725408066668,3.2078,2428.8,2428.3,0.00618531]
[1725408066961,3.2078,2428.8,2428.3,0.41804531]
[1725408067260,3.2078,2428.8,2428.4,0.41185]
[1725408067567,3.2078,2428.8,2428.3,0.41804531]
[1725408067767,3.2078,2428.8,2428.5,0.41183]
[1725408067968,3.2078,2428.8,2428.4,0.41184]
[1725408068462,3.2078,2428.8,2428.3,0.41804531]
[1725408068665,3.2078,2428.8,2428.4,0.41185]
[1725408068865,3.2078,2428.8,2428.3,0.41804531]
[1725408069469,3.2078,2428.8,2428.3,0.00618531]
[1725408070161,3.2078,2428.8,2428.3,0.41804531]
[1725408070362,3.2078,2428.8,2428.4,0.41185]
[1725408070568,3.2078,2428.8,2428.3,0.41804531]
[1725408071271,3.2078,2428.8,2428.4,0.41185]
[1725408071472,3.2078,2428.8,2428.3,0.00618531]
[1725408071770,3.2078,2428.8,2428.3,0.41804531]
[1725408072469,3.2078,2428.8,2428.4,0.41185]
[1725408072872,4.1176,2428.7,2428.3,0.00618531]
[1725408073171,3.61959,2428.8,2428.3,0.00618531]
[1725408073362,0.41183,2428.6,2428.3,0.00618531]
[1725408073563,4.52941,2428.7,2428.3,0.00618531]
[1725408073774,4.1176,2428.6,2428.3,0.00618531]
[1725408074075,4.1176,2428.7,2428.3,0.00618531]
[1725408074372,4.5294,2428.7,2428.3,0.00618531]
[1725408074573,3.2078,2428.5,2428.3,0.00618531]
[1725408074765,4.52943,2428.6,2427.7,3.2078]
[1725408074970,0.41184,2428.5,2428.0,0.41191]
[1725408075268,0.41183,2428.6,2428.1,0.4119]
[1725408075467,0.41183,2428.6,2428.2,0.41188]
[1725408075670,0.41183,2428.5,2428.2,0.00618531]
[1725408075864,4.1176,2428.5,2428.2,0.41806531]
[1725408076064,4.1184,2428.4,2428.2,0.41806531]
[1725408076260,4.1184,2428.4,2428.2,0.00618531]
[1725408076465,4.53028,2428.3,2427.8,0.41195]
[1725408076661,4.1184,2428.3,2427.7,3.2078]
[1725408076872,7.3262,2428.2,2427.9,0.41193]
[1725408077072,0.00618531,2428.6,2427.7,3.2078]
[1725408077267,0.00618531,2428.6,2428.5,0.41183]
[1725408077764,4.12378531,2428.6,2428.5,0.41183]
[1725408078577,4.12378531,2428.6,2428.4,0.41184]
[1725408078877,4.12378531,2428.6,2428.3,0.00618531]
[1725408078878,0.00618531,2428.6,2428.5,0.41183]
[1725408079363,4.12378531,2428.6,2428.4,0.41184]
[1725408079565,4.1176,2428.5,2428.3,0.00618531]
[1725408079764,7.3254,2428.5,2428.3,0.00618531]
[1725408079974,9.2078,2428.5,2428.4,0.41185]
[1725408080172,0.00618531,2428.6,2428.3,0.00618531]
[1725408080472,4.1176,2428.5,2428.3,0.41804531]
[1725408080876,3.21398531,2428.6,2428.4,0.41185]
[1725408081174,4.1176,2428.5,2428.3,0.41804531]
[1725408081371,4.1176,2428.5,2428.3,0.00618531]
[1725408081569,4.52945,2428.4,2428.3,0.00618531]
[1725408082071,10.1176,2428.4,2427.5,4.23781]
[1725408082268,3.61967,2428.3,2428.0,0.41191]
[1725408082468,3.2078,2428.3,2427.6,1.02995]
[1725408082670,3.2078,2428.3,2427.7,1.02993]
[1725408082869,3.2078,2428.3,2428.2,0.41188]
[1725408083078,0.41801531,2428.6,2428.2,0.41188]
[1725408083379,4.52944,2428.5,2428.3,0.41187]
[1725408083573,0.00618531,2428.6,2428.0,0.00618531]
[1725408083776,0.00618531,2428.6,2428.5,0.41183]
[1725408084168,4.12378531,2428.6,2428.5,0.41183]
[1725408084576,0.00618531,2428.6,2428.5,1.44142]
[1725408084969,5.31e-06,2428.6,2428.5,6.58861]
[1725408085172,5.31e-06,2428.6,2428.5,1.44142]
[1725408085382,5.31e-06,2428.6,2428.5,0.41183]
[1725408085568,5.31e-06,2428.6,2428.5,2.47101]
[1725408085772,3.2078,2430.2,2429.7,0.41162]
[1725408085976,0.41157,2430.1,2429.2,3.2078]
[1725408086279,2.2638,2430.5,2428.9,3.2078]
[1725408086280,3.2078,2429.9,2428.9,3.2078]
[1725408086777,3.2078,2429.9,2429.2,3.2078]
[1725408087090,0.00617233,2429.6,2429.5,0.41166]
[1725408087676,0.00617233,2429.6,2429.5,4.52766]
[1725408088180,0.00617233,2429.6,2429.5,7.73546]
[1725408089069,0.00617233,2429.6,2429.2,0.00617233]
[1725408089269,0.00617233,2429.6,2429.5,0.41166]
[1725408089479,0.00617233,2429.6,2429.5,1.44083]
[1725408089784,0.00617233,2429.6,2429.5,11.55683]
[1725408091077,0.00617233,2429.6,2429.5,4.52766]
[1725408091678,0.00617233,2429.6,2429.5,10.52766]
[1725408091872,3.2078,2430.5,2430.4,0.41151]
[1725408092188,3.61924,2430.9,2429.9,3.2078]
[1725408092478,0.41152,2430.4,2429.6,3.2078]
[1725408092685,3.2078,2430.6,2429.6,3.2078]
[1725408092983,0.00616033,2430.3,2429.6,3.2078]
[1725408093188,0.00616033,2430.3,2429.8,0.41161]
[1725408093482,3.2078,2430.1,2429.2,0.00617233]
[1725408093683,0.00616033,2430.3,2429.2,0.00617233]
[1725408093684,3.2078,2429.5,2429.2,0.00617233]
[1725408093981,3.96,2429.9,2429.3,0.41169]
[1725408093982,3.2078,2429.8,2429.3,0.41169]
[1725408094172,3.2078,2429.8,2429.2,0.00617233]
[1725408094173,3.2078,2429.8,2429.4,0.41168]
[1725408094475,3.2078,2429.8,2429.2,0.00617233]
[1725408094676,3.2078,2430.1,2429.2,0.00617233]
[1725408094981,0.41159,2430.0,2429.3,0.41168]
[1725408095179,3.2078,2430.1,2429.2,0.00617233]
[1725408095374,3.2078,2430.1,2429.6,0.41164]
[1725408095578,3.2078,2430.1,2429.2,0.00617233]
[1725408095778,2.2345,2430.2,2429.2,0.00617233]
[1725408095978,2.2345,2430.2,2429.8,0.4116]
[1725408096282,2.2345,2430.2,2429.3,3.2078]
[1725408096283,2.2345,2430.2,2429.9,0.41159]
[1725408096482,0.00616033,2430.3,2429.6,3.2078]
[1725408096684,0.00616033,2430.3,2429.9,0.4116]
[1725408097183,0.00616033,2430.3,2429.9,0.41159]
[1725408097384,0.00616033,2430.3,2429.6,3.2078]
[1725408097883,0.00616033,2430.3,2430.0,0.41157]
[1725408098087,3.61937,2430.1,2429.2,3.96617233]
[1725408098278,3.61937,2430.1,2429.4,0.41167]
[1725408098473,3.61937,2430.1,2429.5,0.41166]
[1725408098678,3.61937,2430.1,2429.2,1.03544233]
[1725408098679,3.2078,2430.1,2429.2,1.03544233]
[1725408098876,3.2078,2430.1,2429.2,4.99544233]
[1725408099078,3.2078,2430.1,2429.3,3.2078]
[1725408099482,0.41161,2429.8,2429.3,3.2078]
[1725408099786,0.41163,2429.7,2429.3,3.2078]
[1725408099988,3.2078,2429.8,2429.3,3.61949]
[1725408100486,3.61941,2429.8,2429.3,3.61949]
[1725408100782,3.2078,2429.8,2429.4,0.41168]
[1725408101089,3.2078,2429.8,2429.3,3.2078]
[1725408101286,3.2078,2429.8,2429.4,0.41168]
[1725408101686,3.2078,2429.8,2429.3,3.61949]
[1725408101687,3.61942,2429.8,2429.3,3.61949]
[1725408101981,1.03503033,2430.3,2429.2,0.00617233]
[1725408101982,3.2078,2429.4,2429.2,0.00617233]
[1725408102683,4.5285,2429.3,2429.2,0.00617233]
[1725408102872,4.5285,2429.3,2428.4,4.102]
[1725408102873,4.1168,2429.3,2428.4,4.102]
[1725408103073,3.2078,2428.9,2428.0,6.55279]
[1725408103289,3.2078,2428.9,2428.6,0.41181]
[1725408103682,3.2078,2429.3,2428.3,3.2078]
[1725408103987,0.00617233,2429.0,2428.8,0.41177]
[1725408104176,0.00617233,2429.0,2428.6,0.00617233]
[1725408104385,0.00617233,2429.0,2428.7,0.41179]
[1725408104699,0.00617233,2429.0,2428.6,0.00617233]
[1725408104981,0.00617233,2429.0,2428.8,0.41177]
[1725408105387,0.00617233,2429.0,2428.9,0.41177]
[1725408105886,0.00617233,2429.0,2428.6,0.00617233]
[1725408106182,0.00617233,2429.0,2428.7,0.41179]
[1725408106586,0.00617233,2429.0,2428.8,0.41177]
[1725408106893,0.00617233,2429.0,2428.9,0.41177]
[1725408107083,0.00617233,2429.0,2428.8,0.41178]
[1725408107284,0.00617233,2429.0,2428.7,0.41179]
[1725408107888,7.33077233,2429.0,2428.6,0.00617233]
[1725408108190,3.21397233,2429.0,2428.6,0.41799233]
[1725408108486,7.33157233,2429.0,2428.6,0.00617233]
[1725408108992,3.21397233,2429.0,2428.6,0.41798233]
[1725408109693,3.21397233,2429.0,2428.7,0.4118]
[1725408110101,7.33077233,2429.0,2428.6,0.00617233]
[1725408110391,0.00617233,2429.0,2428.9,0.41177]
[1725408111088,0.00617233,2429.0,2428.9,4.52857]
[1725408115689,0.00617233,2429.0,2428.9,5.55799]
[1725408115889,0.00617233,2429.0,2428.9,9.35799]
[1725408116095,0.00617233,2429.0,2428.9,8.32857]
[1725408117706,0.00617233,2429.0,2428.9,9.35799]
[1725408118402,0.00617233,2429.0,2428.9,4.21177]
[1725408118605,0.00617233,2429.0,2428.9,8.32857]
[1725408119001,0.00617233,2429.0,2428.9,4.21177]
[1725408119391,0.00617233,2429.0,2428.9,8.32857]
[1725408120000,0.00617233,2429.0,2428.7,3.2078]
[1725408120399,0.00617233,2429.0,2428.6,0.00617233]
[1725408120699,4.12377233,2429.0,2428.6,0.00617233]
[1725408120898,0.00617233,2429.0,2428.6,0.00617233]
[1725408121105,4.12377233,2429.0,2428.6,0.00617233]
[1725408121304,0.00617233,2429.0,2428.6,0.00617233]
[1725408121501,0.00617233,2429.0,2428.6,0.41797233]
[1725408121805,0.00617233,2429.0,2428.6,0.00617233]
[1725408122212,0.00617233,2429.0,2428.6,0.41798233]
[1725408122793,0.00617233,2429.0,2428.6,0.00617233]
[1725408122998,0.00617233,2429.0,2428.6,0.41798233]
[1725408123199,0.00617233,2429.0,2428.7,0.4118]
[1725408123409,0.00617233,2429.0,2428.6,0.00617233]
[1725408123606,0.00617233,2429.0,2428.8,0.41177]
[1725408124001,0.00617233,2429.0,2428.9,0.41177]
[1725408126507,0.00617233,2429.0,2428.9,4.52857]
[1725408127514,0.00617233,2429.0,2428.9,5.55799]
[1725408128411,2.61425501,2429.3,2429.2,0.41171]
[1725408128711,2.61425501,2429.3,2429.2,8.4488]
[1725408129007,2.61425501,2429.3,2429.2,17.53631]
[1725408129213,2.61425501,2429.3,2429.2,11.53631]
[1725408129605,2.61425501,2429.3,2429.2,18.5656]
[1725408129806,2.61425501,2429.3,2429.2,18.9776]
[1725408130111,2.61425501,2429.3,2429.2,11.53631]
[1725408130315,2.61425501,2429.3,2429.2,18.5656]
[1725408131107,0.00616033,2429.5,2429.4,0.41168]
[1725408131312,0.00616033,2429.5,2429.4,1.44089]
[1725408131509,0.00616033,2429.5,2429.4,5.55689]
[1725408131710,0.00616033,2429.5,2429.4,20.02515307]
[1725408131912,0.00616033,2429.5,2429.4,14.02515307]
[1725408132214,0.00616033,2429.5,2429.4,20.02515307]
[1725408133713,1.05846328,2430.2,2430.1,0.41156]
[1725408133919,1.58781867,2430.3,2430.1,0.41156]
[1725408134207,1.58781867,2430.3,2429.9,3.2078]
[1725408134208,1.58781867,2430.2,2429.9,3.2078]
[1725408134408,1.05811363,2430.0,2429.6,7.0078]
[1725408134607,1.05811363,2430.0,2429.8,0.41161]
[1725408134814,1.05811363,2430.0,2429.9,0.4116]
[1725408135710,1.05811363,2430.1,2430.0,0.41158]
[1725408135916,3.17520519,2430.2,2430.1,0.41156]
[1725408136115,2.11709156,2430.2,2430.1,0.41156]
[1725408137818,2.11709156,2430.2,2429.9,3.2078]
[1725408137819,3.17520519,2430.2,2429.9,3.61939]
[1725408138019,1.05811363,2430.1,2429.9,3.61939]
[1725408139019,6.64250959,2430.1,2429.6,3.21397233]
[1725408139217,2.11573959,2430.1,2429.7,0.41163]
[1725408139526,2.52729959,2430.1,2429.6,3.60161233]
[1725408139820,2.11573959,2430.1,2429.6,3.18997233]
[1725408140013,2.11573959,2430.1,2430.0,0.41158]
[1725408142220,2.11573959,2430.1,2430.0,4.52678]
[1725408142516,2.11573959,2430.1,2430.0,11.55574]
[1725408142718,2.11573959,2430.1,2430.0,5.55574]
[1725408142913,2.11573959,2430.1,2430.0,4.52678]
[1725408143917,0.00617233,2430.3,2430.2,0.41155]
[1725408144119,0.00617233,2430.3,2430.2,7.41935]
[1725408145016,0.00617233,2430.3,2430.2,11.53455]
[1725408146125,0.00617233,2430.3,2430.2,12.56342]
[1725408146415,0.00617233,2430.3,2430.2,11.53455]
[1725408146617,0.00617233,2430.3,2429.8,1.03518233]
[1725408146618,0.00617233,2430.3,2430.0,3.8]
[1725408146921,0.00617233,2430.3,2430.0,4.21157]
[1725408147323,0.00617233,2430.3,2430.1,0.41156]
[1725408147520,0.00617233,2430.3,2429.8,3.21397233]
[1725408147725,0.41770233,2430.3,2429.8,3.21397233]
[1725408147914,3.2078,2430.0,2429.8,0.00617233]
[1725408148423,3.2078,2430.0,2429.5,0.41166]
[1725408148424,4.1152,2429.9,2429.5,0.41166]
[1725408148625,3.2078,2430.0,2429.6,0.41164]
[1725408149031,2.2936,2430.2,2429.7,0.41162]
[1725408149332,2.70515,2430.2,2429.7,0.00617233]
[1725408149521,2.2936,2430.2,2429.7,0.41779233]
[1725408150021,2.2936,2430.2,2429.7,0.00617233]
[1725408150226,2.2936,2430.2,2430.1,0.41156]
[1725408150429,0.00617233,2430.3,2430.2,0.41155]
[1725408151621,2.33e-06,2430.3,2430.2,16.38449]
[1725408151926,2.33e-06,2430.3,2430.2,9.55727174]
[1725408152516,2.33e-06,2430.3,2430.2,16.58614174]
[1725408152716,3.17306146,2430.9,2430.8,0.41144]
[1725408152918,3.17306146,2430.9,2430.8,7.41924]
[1725408153114,4.23047891,2431.2,2430.8,3.61924]
[1725408153115,1.05668662,2431.1,2430.8,3.61924]
[1725408153420,1.05668662,2431.1,2430.9,0.41142]
[1725408154023,1.06285895,2431.2,2430.8,8.03642]
[1725408154233,1.06285895,2431.2,2431.1,4.21139]
[1725408154234,0.00617233,2431.2,2431.1,4.21139]
[1725408154524,0.00617233,2431.2,2431.1,7.41919]
[1725408155223,0.00617233,2431.2,2431.1,11.53279]
[1725408155429,0.00617233,2431.2,2431.1,12.56128]
[1725408156031,0.00617233,2431.2,2431.1,11.53279]
[1725408156534,0.15537233,2431.2,2431.1,11.53279]
[1725408157522,1.16307233,2431.2,2431.0,0.4114]
[1725408158129,5.27667233,2431.2,2430.9,3.8]
[1725408158336,1.16307233,2431.2,2430.8,3.61924]
[1725408158839,2.1842,2431.1,2430.8,3.61924]
[1725408159046,2.1842,2431.1,2430.9,0.41142]
[1725408159229,2.1842,2431.1,2430.8,3.2078]
[1725408159230,2.1842,2431.1,2430.8,3.61923]
[1725408159537,2.1842,2431.1,2431.0,0.41141]
[1725408159732,1.16307233,2431.2,2431.1,0.41139]
[1725408160137,1.16307233,2431.2,2430.9,3.8]
[1725408160332,4.1136,2431.1,2430.8,3.2078]
[1725408160539,4.525,2431.1,2430.8,3.2078]
[1725408160744,4.1136,2431.0,2430.8,3.2078]
[1725408160927,4.52501,2431.0,2430.8,3.2078]
[1725408161129,0.41145,2430.8,2430.3,3.2078]
[1725408161343,2.2651,2430.7,2430.2,0.41153]
[1725408161532,2.2651,2430.7,2430.1,3.8]
[1725408161533,5.4729,2430.7,2430.1,3.8]
[1725408161732,5.88437,2430.7,2430.2,0.41155]
[1725408162046,0.41149,2430.6,2430.1,4.21156]
[1725408162232,0.41149,2430.6,2430.2,0.41154]
[1725408162431,5.4729,2430.7,2430.1,3.8]
[1725408162833,5.4729,2430.7,2430.5,0.41149]
[1725408163040,5.88437,2430.7,2430.1,3.8]
[1725408163335,3.2078,2430.4,2430.0,3.2078]
[1725408163543,3.2078,2430.4,2429.8,0.41161]
[1725408163544,0.41156,2430.2,2429.8,0.41161]
[1725408163736,6.75924,2430.3,2429.6,3.8]
[1725408163933,2.64404,2430.3,2429.6,3.8]
[1725408164136,6.75924,2430.3,2429.6,3.8]
[1725408164337,0.41155,2430.2,2429.8,0.4116]
[1725408164533,0.41155,2430.2,2429.9,0.4116]
[1725408164534,1.05668662,2430.2,2429.9,0.4116]
[1725408164751,7.323,2430.1,2429.9,0.41159]
[1725408164941,7.323,2430.1,2429.6,3.8]
[1725408165142,0.4116,2429.9,2429.5,0.41165]
[1725408165440,3.2078,2429.8,2429.2,4.82926]
[1725408165643,2.3,2429.9,2429.3,1.02921]
[1725408165848,2.3,2429.9,2429.8,0.41161]
[1725408166231,6.4152,2429.9,2429.8,0.41161]
[1725408166942,2.3,2429.9,2429.8,0.41161]
[1725408167147,1.05668662,2430.2,2429.5,3.2078]
[1725408167343,1.05668662,2430.2,2429.9,0.41159]
[1725408167644,1.05668662,2430.2,2429.4,4.82918]
[1725408167946,1.05668662,2430.2,2430.1,0.41156]
[1725408168337,5.17188662,2430.2,2429.6,1.02909]
[1725408168540,5.17188662,2430.2,2430.0,0.41157]
[1725408168541,1.05668662,2430.2,2430.0,0.41157]
[1725408168941,5.17188662,2430.2,2430.0,0.41157]
[1725408169136,5.17188662,2430.2,2430.1,0.41156]
[1725408169137,1.05668662,2430.2,2430.1,0.41156]
[1725408169635,3.35668662,2430.4,2430.2,0.41154]